[Event "CCT Chessable Masters Place D-II 2024"]
[Site "Online"]
[Date "2024.02.01"]
[Round "2"]
[White "Micki-taryan"]
[Black "kpio91"]
[Result "1-0"]
[ECO "E73"]
[WhiteElo "2621"]
[BlackElo "2422"]
[Annotator "NA"]
[PlyCount "79"]
[EventDate "2024.01.12"]
[EventType "k.o."]
[EventCountry "NET"]
[SourceTitle "playchess.com"]
[Source "ChessBase"]
[SourceQuality "1"]
[TimeControl "600+2"]

1. d4 {[%emt 0:00:02]} Nf6 {[%emt 0:00:03]} 2. c4 {[%emt 0:00:01]} g6 {[%emt 0:00:01]} 3. Nc3 {[%emt 0:00:03]} Bg7 {[%emt 0:00:01]} 4. e4 {[%emt 0:00:01]} d6 {[%emt 0:00:01]} 5. Be2 {[%emt 0:00:00]} O-O {[%emt 0:00:01]} 6. Be3 {[%emt 0:00:00]} a6 {[%emt 0:00:04]} 7. h4 {[%emt 0:00:03]} h5 {[%emt 0:00:14]} 8. f3 {[%emt 0:00:02]} c6 {[%emt 0:00:01]} 9. a4 {[%emt 0:00:01]} a5 {[%emt 0:00:04]} 10. Qd2 {[%emt 0:00:04]} Na6 {[%emt 0:00:01]} 11. Nh3 {[%emt 0:00:02]} Qc7 {[%emt 0:00:12]} 12. Nf2 {[%emt 0:00:04]} e5 {[%emt 0:00:01]} 13. d5 {[%emt 0:00:03]} Nc5 {[%emt 0:00:39]} 14. Ra3 {[%emt 0:00:04]} Nh7 {[%emt 0:00:39]} 15. g4 {[%emt 0:00:22]} f5 {[%emt 0:00:07]} 16. exf5 {[%emt 0:00:30]} gxf5 {[%emt 0:00:03]} 17. gxh5 {[%emt 0:00:06]} Qe7 {[%emt 0:00:28]} 18. h6 {[%emt 0:00:37]} Bf6 {[%emt 0:00:04]} 19. Rg1+ {[%emt 0:00:01]} Kh8 {[%emt 0:00:01]} 20. Bg5 {[%emt 0:00:01]} Bd7 {[%emt 0:00:28]} 21. f4 {[%emt 0:00:28]} Rg8 {[%emt 0:01:28]} 22. Nh3 {[%emt 0:01:36]} exf4 {[%emt 0:00:10]} 23. Bxf4 {[%emt 0:00:04]} Rxg1+ {[%emt 0:00:44]} 24. Nxg1 {[%emt 0:00:00]} Bxh4+ {[%emt 0:00:58]} 25. Kd1 {[%emt 0:00:01]} Bg5 {[%emt 0:00:22]} 26. Nf3 {[%emt 0:00:17]} Bxf4 {[%emt 0:00:06]} 27. Qxf4 {[%emt 0:00:00]} Rg8 {[%emt 0:00:06]} 28. Nd4 {[%emt 0:00:38]} Qf6 {[%emt 0:00:35]} 29. Nb3 {[%emt 0:00:14]} Rg1+ {[%emt 0:00:46]} 30. Kc2 {[%emt 0:00:13]} b6 {[%emt 0:00:49]} 31. Nxc5 {[%emt 0:00:23]} dxc5 {[%emt 0:00:01]} 32. Rb3 {[%emt 0:01:06]} Qd4 {[%emt 0:01:26]} 33. Qc7 {[%emt 0:00:05]} Nf6 {[%emt 0:00:04]} 34. Rxb6 {[%emt 0:00:04]} f4 {[%emt 0:00:02]} 35. Rb8+ {[%emt 0:00:09]} Kh7 {[%emt 0:00:02]} 36. dxc6 {[%emt 0:00:05]} f3 {[%emt 0:00:17]} 37. cxd7 {[%emt 0:00:09]} Nxd7 {[%emt 0:00:04]} 38. Bxf3 {[%emt 0:00:11]} Rf1 {[%emt 0:00:03]} 39. Be4+ {[%emt 0:00:03]} Kxh6 {[%emt 0:00:01]} 40. Qh2+ {[%emt 0:00:04]} 1-0

[Event "CCT Chessable Masters Place D-II 2024"]
[Site "Online"]
[Date "2024.02.01"]
[Round "2"]
[White "GMBenjaminBok"]
[Black "Grischuk, Alexander"]
[Result "1-0"]
[ECO "D45"]
[WhiteElo "2614"]
[BlackElo "2732"]
[Annotator "TA"]
[PlyCount "83"]
[EventDate "2024.01.12"]
[EventType "k.o."]
[EventCountry "NET"]
[SourceTitle "playchess.com"]
[Source "ChessBase"]
[SourceQuality "1"]
[TimeControl "600+2"]

{[%evp 23,83,5,10,12,0,1,14,1,12,13,22,0,9,0,18,-1,0,0,0,0,-2,-16,0,-26,0,-21,-22,-17,-15,-7,-18,-21,3,6,17,17,10,10,50,52,49,56,62,73,84,28,64,0,75,82,65,68,94,92,182,177,361,359,368,372,743,743]} 1. d4 {[%emt 0:00:03]} d5 {[%emt 0:00:04]} 2. c4 {[%emt 0:00:02]} c6 {[%emt 0:00:01]} 3. Nc3 {[%emt 0:00:06]} Nf6 {[%emt 0:00:02]} 4. e3 {[%emt 0:00:01]} e6 {[%emt 0:00:03]} 5. Nf3 {[%emt 0:00:04]} Nbd7 {[%emt 0:00:01]} 6. Qc2 {[%emt 0:00:03]} Bd6 {[%emt 0:00:02]} 7. b3 {[%emt 0:00:04]} O-O {[%emt 0:00:02]} 8. Be2 {[%emt 0:00:02]} b6 {[%emt 0:00:09]} 9. O-O {[%emt 0:00:01]} Bb7 {[%emt 0:00:01]} 10. Bb2 {[%emt 0:00:01]} Rc8 {[%emt 0:00:13]} 11. Rad1 {[%emt 0:00:19]} c5 {[%emt 0:00:27]} 12. cxd5 {[%emt 0:00:06]} exd5 {[%emt 0:00:43]} 13. dxc5 {[%emt 0:01:51]} bxc5 {[%emt 0:00:13]} 14. Qf5 {[%emt 0:00:10]} Qe7 {[%emt 0:00:41]} 15. Rfe1 {[%emt 0:02:08] The position is equal.} Qe6 {[%emt 0:02:48]} 16. Bd3 {[%emt 0:00:13]} (16. Qxe6 {simplifies} fxe6 17. Bd3 h6 18. h3) 16... h6 {[%emt 0:00:34]} 17. Bb1 {[%emt 0:00:59]} Rfe8 {[%emt 0:00:32][%cal Bf8e8,Be8e6,Be6a6,Ba6a4][%mdl 32]} 18. Ne2 {[%emt 0:00:24][%cal Bc3e2,Be2g3,Bg3f5][%mdl 32]} Rcd8 {[%emt 0:00:43]} 19. Ng3 {[%emt 0:01:08]} Qxf5 {[%emt 0:00:36]} 20. Nxf5 {[%emt 0:00:11]} Bf8 {[%emt 0:00:01]} 21. Rc1 {[%emt 0:00:17]} a5 {[%emt 0:00:09]} 22. Bd3 {[%emt 0:00:08]} Re6 {[%emt 0:00:22]} 23. Bb5 {[%emt 0:00:24]} Bc6 {[%emt 0:00:50]} 24. N3d4 {[%emt 0:00:23]} Bxb5 {[%emt 0:00:09]} 25. Nxb5 {[%emt 0:00:00] [#]} a4 $1 {[%emt 0:00:12]} 26. bxa4 {[%emt 0:00:29]} Ra6 {[%emt 0:00:00]} 27. Red1 {[%emt 0:00:18]} Rb8 {[%emt 0:00:44]} 28. Ba1 {[%emt 0:00:11]} g6 {[%emt 0:00:04]} 29. Ng3 {[%emt 0:00:03]} ({Don't blunder} 29. Nc7 $2 Rc6 (29... Rxa4 30. Ng3 $17) 30. Nxh6+ (30. Bxf6 $2 Nxf6 31. Nxd5 gxf5 $19) 30... Bxh6 31. Nxd5 Bf8 $19) 29... Rxa4 {[%emt 0:00:14]} 30. Nc3 {[%emt 0:00:02][%csl LRa4,LRd5]} Ra3 {[%emt 0:00:10]} 31. Nxd5 {[%emt 0:00:02]} Nxd5 {[%emt 0:00:00]} 32. Rxd5 {[%emt 0:00:01]} Nb6 {[%emt 0:00:01]} 33. Rd2 {[%emt 0:00:03]} Rba8 {[%emt 0:00:01]} 34. Rcc2 {[%emt 0:00:29]} ({Better is} 34. Ne4 $16 {Hoping for Nf6+.} Rxa2 35. Nf6+ Kg7 36. Rxa2 Rxa2 37. Ng4+ Kh7 38. Nf6+ Kg7 39. Be5) 34... R8a4 {[%emt 0:00:02]} 35. h3 {[%emt 0:00:09]} (35. Bf6 $14) 35... Rc4 {[%emt 0:00:09]} (35... f5 $11) 36. Rxc4 $16 {[%emt 0:00:06]} Nxc4 {[%emt 0:00:01]} 37. Rc2 {[%emt 0:00:00]} Nb6 {[%emt 0:00:08]} 38. Ne4 {[%emt 0:00:02] [#] Nf6+ would now be deadly.} f5 {[%emt 0:00:04]} (38... Nd7 $16) 39. Nxc5 $18 {[%emt 0:00:03]} Bxc5 $2 {[%emt 0:00:01]} (39... Nd5 40. Nd7 Bg7) 40. Rxc5 {[%emt 0:00:00]} Rxa2 {[%emt 0:00:00]} 41. Bd4 {[%emt 0:00:01]} Nd7 $2 {[%emt 0:00:01]} (41... g5 42. Rxf5 Nd7) 42. Rc7 {[%emt 0:00:03] Weighted Error Value: White=0.11 (very precise) /Black=0.25 (precise) .  Mistake:       	White=2     	Black=4      Inaccurate:     	White=1     	Black=4      OK:         	White=11    	Black=9      Best:        	White=2     	---} 1-0

[Event "CCT Chessable Masters Place D-II 2024"]
[Site "Online"]
[Date "2024.02.01"]
[Round "2"]
[White "Paravyan, David"]
[Black "Vokhidov, Shamsiddin"]
[Result "1/2-1/2"]
[ECO "B47"]
[WhiteElo "2612"]
[BlackElo "2596"]
[Annotator "ChessBase"]
[PlyCount "81"]
[EventDate "2024.01.12"]
[EventType "k.o."]
[EventCountry "NET"]
[SourceTitle "playchess.com"]
[Source "ChessBase"]
[SourceQuality "1"]
[TimeControl "600+2"]

1. e4 {[%emt 0:00:06]} c5 {[%emt 0:00:04]} 2. Nf3 {[%emt 0:00:01]} e6 {[%emt 0:00:00]} 3. d4 {[%emt 0:00:01]} cxd4 {[%emt 0:00:01]} 4. Nxd4 {[%emt 0:00:01]} Nc6 {[%emt 0:00:01]} 5. Nc3 {[%emt 0:00:02]} Qc7 {[%emt 0:00:00]} 6. Nxc6 {[%emt 0:00:04]} dxc6 {[%emt 0:00:10]} 7. f4 {[%emt 0:00:02]} e5 {[%emt 0:00:33]} 8. f5 {[%emt 0:00:02]} Nf6 {[%emt 0:00:01]} 9. Qf3 {[%emt 0:00:05]} b5 {[%emt 0:00:39]} 10. a4 {[%emt 0:00:33]} b4 {[%emt 0:00:18]} 11. Nd1 {[%emt 0:00:37]} Bc5 {[%emt 0:00:17]} 12. Bc4 {[%emt 0:00:11]} O-O {[%emt 0:00:18]} 13. Be3 {[%emt 0:01:13]} Qe7 {[%emt 0:00:33]} 14. Nf2 {[%emt 0:00:38]} Rd8 {[%emt 0:00:12]} 15. O-O {[%emt 0:00:05]} Bxe3 {[%emt 0:00:19]} 16. Qxe3 {[%emt 0:00:00]} Rd4 {[%emt 0:00:01]} 17. Be2 {[%emt 0:00:26]} Qc5 {[%emt 0:01:38]} 18. c3 {[%emt 0:00:07]} bxc3 {[%emt 0:00:02]} 19. bxc3 {[%emt 0:00:06]} Rc4 {[%emt 0:00:01]} 20. Qxc5 {[%emt 0:01:21]} Rxc5 {[%emt 0:00:00]} 21. Rfc1 {[%emt 0:00:01]} Ra5 {[%emt 0:00:19]} 22. g4 {[%emt 0:01:17]} h6 {[%emt 0:00:03]} 23. h4 {[%emt 0:00:04]} g5 {[%emt 0:00:09]} 24. fxg6 {[%emt 0:00:38]} fxg6 {[%emt 0:00:02]} 25. Rd1 {[%emt 0:00:01]} Kf7 {[%emt 0:00:38]} 26. Rd6 {[%emt 0:00:14]} g5 {[%emt 0:01:02]} 27. hxg5 {[%emt 0:00:07]} hxg5 {[%emt 0:00:02]} 28. Rxc6 {[%emt 0:00:35]} Bd7 {[%emt 0:00:02]} 29. Rc7 {[%emt 0:00:01]} Rc8 {[%emt 0:00:01]} 30. Rxc8 {[%emt 0:01:08]} Bxc8 {[%emt 0:00:00]} 31. Bb5 {[%emt 0:00:15]} a6 {[%emt 0:00:18]} 32. Bc4+ {[%emt 0:00:05]} Ke7 {[%emt 0:00:04]} 33. Be2 {[%emt 0:00:10]} Bd7 {[%emt 0:00:18]} 34. Kg2 {[%emt 0:00:10]} Bc6 {[%emt 0:00:21]} 35. Kf3 {[%emt 0:00:03]} Rc5 {[%emt 0:00:19]} 36. c4 {[%emt 0:00:24]} Ra5 {[%emt 0:00:22]} 37. Bd1 {[%emt 0:00:02]} Nd7 {[%emt 0:00:30]} 38. Nd3 {[%emt 0:00:01]} Nf6 {[%emt 0:00:04]} 39. Nf2 {[%emt 0:00:01]} Nd7 {[%emt 0:00:01]} 40. Nd3 {[%emt 0:00:03]} Nf6 {[%emt 0:00:02]} 41. Nf2 {[%emt 0:00:03]} 1/2-1/2

[Event "CCT Chessable Masters Place D-II 2024"]
[Site "Online"]
[Date "2024.02.01"]
[Round "2"]
[White "Vokhidov, Shamsiddin"]
[Black "Paravyan, David"]
[Result "1/2-1/2"]
[ECO "C42"]
[WhiteElo "2596"]
[BlackElo "2612"]
[Annotator "ChessBase"]
[PlyCount "62"]
[EventDate "2024.01.12"]
[EventType "k.o."]
[EventCountry "NET"]
[SourceTitle "playchess.com"]
[Source "ChessBase"]
[SourceQuality "1"]
[TimeControl "600+2"]

1. e4 {[%emt 0:00:02]} e5 {[%emt 0:00:03]} 2. Nf3 {[%emt 0:00:02]} Nf6 {[%emt 0:00:00]} 3. Nxe5 {[%emt 0:00:36]} d6 {[%emt 0:00:02]} 4. Nf3 {[%emt 0:00:01]} Nxe4 {[%emt 0:00:01]} 5. d4 {[%emt 0:00:00]} d5 {[%emt 0:00:02]} 6. Bd3 {[%emt 0:00:01]} Bd6 {[%emt 0:00:00]} 7. O-O {[%emt 0:00:01]} O-O {[%emt 0:00:00]} 8. c4 {[%emt 0:00:02]} c6 {[%emt 0:00:01]} 9. Re1 {[%emt 0:00:01]} Bf5 {[%emt 0:00:02]} 10. Qb3 {[%emt 0:00:02]} Na6 {[%emt 0:00:05]} 11. cxd5 {[%emt 0:00:34]} cxd5 {[%emt 0:00:03]} 12. Nc3 {[%emt 0:00:10]} Nb4 {[%emt 0:00:01]} 13. Bb1 {[%emt 0:00:05]} Re8 {[%emt 0:00:04]} 14. a3 {[%emt 0:00:07]} Nc6 {[%emt 0:00:47]} 15. Qxb7 {[%emt 0:00:16]} Nxd4 {[%emt 0:01:18]} 16. Nxd4 {[%emt 0:00:56]} Nxc3 {[%emt 0:02:35]} 17. Rxe8+ {[%emt 0:01:05]} Qxe8 {[%emt 0:00:00]} 18. Be3 {[%emt 0:00:01]} Bxb1 {[%emt 0:00:27]} 19. bxc3 {[%emt 0:00:03]} Be4 {[%emt 0:00:20]} 20. Re1 {[%emt 0:02:19]} Qb8 {[%emt 0:01:32]} 21. Qxb8+ {[%emt 0:00:19]} Rxb8 {[%emt 0:00:00]} 22. Nc6 {[%emt 0:00:29]} Rc8 {[%emt 0:00:04]} 23. Nxa7 {[%emt 0:00:13]} Rxc3 {[%emt 0:02:34]} 24. Nb5 {[%emt 0:00:29]} Rc6 {[%emt 0:00:01]} 25. f3 {[%emt 0:00:10]} Bd3 {[%emt 0:00:12]} 26. Nxd6 {[%emt 0:00:17]} Rxd6 {[%emt 0:00:00]} 27. Bd4 {[%emt 0:00:01]} f6 {[%emt 0:00:13]} 28. a4 {[%emt 0:00:12]} Rc6 {[%emt 0:00:03]} 29. Rd1 {[%emt 0:00:20]} Bc2 {[%emt 0:00:08]} 30. Rc1 {[%emt 0:00:06]} Bxa4 {[%emt 0:00:05]} 31. Rxc6 {[%emt 0:00:02]} Bxc6 {[%emt 0:00:00]} 1/2-1/2

[Event "CCT Chessable Masters Place D-II 2024"]
[Site "Online"]
[Date "2024.02.01"]
[Round "2"]
[White "Indjic, Aleksandar"]
[Black "shimastream"]
[Result "0-1"]
[ECO "A11"]
[WhiteElo "2595"]
[BlackElo "2634"]
[Annotator "ChessBase"]
[PlyCount "54"]
[EventDate "2024.01.12"]
[EventType "k.o."]
[EventCountry "NET"]
[SourceTitle "playchess.com"]
[Source "ChessBase"]
[SourceQuality "1"]
[TimeControl "600+2"]

1. Nf3 {[%emt 0:00:03]} d5 {[%emt 0:00:06]} 2. e3 {[%emt 0:00:01]} Nf6 {[%emt 0:00:02]} 3. c4 {[%emt 0:00:01]} c6 {[%emt 0:00:01]} 4. Nc3 {[%emt 0:00:00]} a6 {[%emt 0:00:02]} 5. Qc2 {[%emt 0:00:01]} g6 {[%emt 0:00:17]} 6. b3 {[%emt 0:00:04]} Bg7 {[%emt 0:00:03]} 7. Bb2 {[%emt 0:00:01]} O-O {[%emt 0:00:01]} 8. h3 {[%emt 0:00:02]} b5 {[%emt 0:00:38]} 9. Be2 {[%emt 0:00:07]} Bf5 {[%emt 0:01:00]} 10. Qc1 {[%emt 0:00:04]} dxc4 {[%emt 0:00:07]} 11. bxc4 {[%emt 0:00:03]} bxc4 {[%emt 0:00:02]} 12. Bxc4 {[%emt 0:00:03]} c5 {[%emt 0:00:02]} 13. Ne5 {[%emt 0:00:15]} Qc7 {[%emt 0:00:54]} 14. f4 {[%emt 0:00:05]} Nc6 {[%emt 0:00:47]} 15. Nxc6 {[%emt 0:00:56]} Qxc6 {[%emt 0:00:00]} 16. O-O {[%emt 0:00:02]} Rfd8 {[%emt 0:00:07]} 17. Rf2 {[%emt 0:00:09]} Rab8 {[%emt 0:00:07]} 18. g4 {[%emt 0:00:40]} Bd3 {[%emt 0:00:42]} 19. Bxd3 {[%emt 0:00:02]} Rxd3 {[%emt 0:00:00]} 20. Rb1 {[%emt 0:00:11]} Rbd8 {[%emt 0:00:30]} 21. Ba3 {[%emt 0:00:13]} Ne4 {[%emt 0:00:27]} 22. Nxe4 {[%emt 0:00:15]} Qxe4 {[%emt 0:00:00]} 23. Bb2 {[%emt 0:01:12]} Rxd2 {[%emt 0:00:21]} 24. Bxg7 {[%emt 0:00:02]} Qxe3 {[%emt 0:00:22]} 25. Qe1 {[%emt 0:00:36]} Qg3+ {[%emt 0:00:06]} 26. Kf1 {[%emt 0:00:06]} Qxh3+ {[%emt 0:00:03]} 27. Kg1 {[%emt 0:00:01]} Qxg4+ {[%emt 0:00:11]} 0-1

[Event "CCT Chessable Masters Place D-II 2024"]
[Site "Online"]
[Date "2024.02.01"]
[Round "2"]
[White "Indjic, Aleksandar"]
[Black "shimastream"]
[Result "1/2-1/2"]
[ECO "A11"]
[WhiteElo "2595"]
[BlackElo "2630"]
[Annotator "ChessBase"]
[PlyCount "80"]
[EventDate "2024.01.12"]
[EventType "k.o."]
[EventCountry "NET"]
[SourceTitle "playchess.com"]
[Source "ChessBase"]
[SourceQuality "1"]
[TimeControl "600+2"]

1. Nf3 {[%emt 0:00:03]} d5 {[%emt 0:00:09]} 2. e3 {[%emt 0:00:01]} Nf6 {[%emt 0:00:30]} 3. c4 {[%emt 0:00:02]} c6 {[%emt 0:00:06]} 4. Nc3 {[%emt 0:00:15]} a6 {[%emt 0:00:48]} 5. b3 {[%emt 0:00:03]} Bf5 {[%emt 0:00:09]} 6. h3 {[%emt 0:00:12]} h6 {[%emt 0:00:46]} 7. Bb2 {[%emt 0:00:02]} Nbd7 {[%emt 0:00:06]} 8. d4 {[%emt 0:00:01]} e6 {[%emt 0:00:03]} 9. Bd3 {[%emt 0:00:01]} Bb4 {[%emt 0:00:35]} 10. O-O {[%emt 0:00:06]} O-O {[%emt 0:00:05]} 11. Qc2 {[%emt 0:00:08]} Bxd3 {[%emt 0:00:02]} 12. Qxd3 {[%emt 0:00:01]} Re8 {[%emt 0:00:22]} 13. Rfd1 {[%emt 0:00:02]} Qe7 {[%emt 0:00:05]} 14. a3 {[%emt 0:00:07]} Ba5 {[%emt 0:00:02]} 15. Qc2 {[%emt 0:00:39]} Rad8 {[%emt 0:00:07]} 16. Na4 {[%emt 0:00:35]} Ne4 {[%emt 0:00:09]} 17. b4 {[%emt 0:00:03]} Bc7 {[%emt 0:00:02]} 18. Nc5 {[%emt 0:00:04]} Nd6 {[%emt 0:00:10]} 19. Nxd7 {[%emt 0:00:05]} Qxd7 {[%emt 0:00:08]} 20. Ne5 {[%emt 0:00:04]} Qe7 {[%emt 0:00:04]} 21. c5 {[%emt 0:00:05]} Nf5 {[%emt 0:00:14]} 22. a4 {[%emt 0:00:05]} Bxe5 {[%emt 0:00:49]} 23. dxe5 {[%emt 0:00:02]} Qg5 {[%emt 0:00:01]} 24. Qe2 {[%emt 0:00:10]} Rd7 {[%emt 0:00:23]} 25. g4 {[%emt 0:00:23]} Ne7 {[%emt 0:00:15]} 26. f4 {[%emt 0:00:02]} Qg6 {[%emt 0:00:04]} 27. Kh2 {[%emt 0:00:02]} Kh8 {[%emt 0:00:20]} 28. Bd4 {[%emt 0:00:02]} Qe4 {[%emt 0:00:08]} 29. Rf1 {[%emt 0:00:05]} Rdd8 {[%emt 0:00:34]} 30. f5 {[%emt 0:00:05]} g5 {[%emt 0:00:10]} 31. fxg6 {[%emt 0:00:27]} Nxg6 {[%emt 0:00:41]} 32. Rf6 {[%emt 0:00:03]} Kg7 {[%emt 0:00:10]} 33. Raf1 {[%emt 0:00:03]} Rd7 {[%emt 0:00:01]} 34. Kg3 {[%emt 0:00:12]} Rf8 {[%emt 0:00:38]} 35. Qf2 {[%emt 0:00:15]} Rc7 {[%emt 0:00:11]} 36. Kh2 {[%emt 0:00:07]} Rd7 {[%emt 0:00:04]} 37. Rg1 {[%emt 0:00:02]} Rh8 {[%emt 0:00:02]} 38. Rf1 {[%emt 0:00:32]} Rf8 {[%emt 0:00:03]} 39. Qg3 {[%emt 0:00:06]} Rh8 {[%emt 0:00:02]} 40. Qf2 {[%emt 0:00:27]} Rf8 {[%emt 0:00:02]} 1/2-1/2

[Event "CCT Chessable Masters Place D-II 2024"]
[Site "Online"]
[Date "2024.02.01"]
[Round "2"]
[White "Lysyj, Igor"]
[Black "LevonAronian"]
[Result "0-1"]
[ECO "E05"]
[WhiteElo "2589"]
[BlackElo "2732"]
[Annotator "TA"]
[PlyCount "102"]
[EventDate "2024.01.12"]
[EventType "k.o."]
[EventCountry "NET"]
[SourceTitle "playchess.com"]
[Source "ChessBase"]
[SourceQuality "1"]
[TimeControl "600+2"]

{[%evp 19,102,0,0,0,0,0,10,10,6,7,6,5,0,0,3,10,6,0,0,0,0,0,12,0,12,10,18,12,12,13,11,0,0,0,0,0,0,0,0,0,4,0,0,0,0,-8,-6,-5,-4,-8,-6,-579,-572,-572,-487,-493,-487,-485,-481,-470,-179,-179,-178,-178,-172,-178,-156,-188,-188,-188,-181,-171,-166,-365,-342,-464,-455,-434,-413,-894,-656,-649,-641,-499,-482]} 1. d4 {[%emt 0:00:02]} Nf6 {[%emt 0:00:04]} 2. c4 {[%emt 0:00:02]} e6 {[%emt 0:00:02]} 3. Nf3 {[%emt 0:00:01]} d5 {[%emt 0:00:01]} 4. g3 {[%emt 0:00:01]} Be7 {[%emt 0:00:02]} 5. Bg2 {[%emt 0:00:01]} O-O {[%emt 0:00:01]} 6. O-O {[%emt 0:00:01]} dxc4 {[%emt 0:00:01]} 7. Ne5 {[%emt 0:00:01]} Nc6 {[%emt 0:00:02]} 8. Nxc6 {[%emt 0:00:01]} bxc6 {[%emt 0:00:01]} 9. Na3 {[%emt 0:00:02]} Bxa3 {[%emt 0:00:03]} 10. bxa3 {[%emt 0:00:01]} Ba6 {[%emt 0:00:08]} 11. Bxc6 {[%emt 0:00:02][%cal Od1a4] Qa4! would now be deadly. This pair of bishops is nice.} Rb8 $1 {[%emt 0:00:09]} 12. Qa4 {[%emt 0:00:07]} Qc8 {[%emt 0:00:55]} (12... Qxd4 $2 13. Be3 Qd6 14. Qxa6 $18) 13. Bg5 {[%emt 0:00:03] The position is equal.} Nd5 {[%emt 0:00:47]} 14. e4 {[%emt 0:00:06]} Nb6 {[%emt 0:00:05]} (14... Nc3 15. Qc2 Bb5 16. Bxb5 (16. Qxc3 Bxc6 17. Rfe1 f5 $15) 16... Nxb5 17. Qxc4 $16) 15. Qc2 {[%emt 0:00:01] Black is weak on the dark squares} Bb7 {[%emt 0:00:03]} 16. Bxb7 {[%emt 0:00:03]} Qxb7 {[%emt 0:00:02]} 17. a4 {[%emt 0:00:01]} Qc6 {[%emt 0:00:29]} 18. Rfc1 {[%emt 0:00:56]} a5 {[%emt 0:00:44]} 19. Rab1 {[%emt 0:00:07][%cal Ba1b1,Bb1b5,Bb5a5,Ba5c5][%mdl 32]} f5 {[%emt 0:00:22]} 20. Rb5 {[%emt 0:00:29]} fxe4 {[%emt 0:00:01]} 21. Rxa5 {[%emt 0:00:02]} Ra8 {[%emt 0:00:09]} 22. Rc5 {[%emt 0:00:05]} Qxa4 {[%emt 0:00:15]} 23. Qxe4 {[%emt 0:01:07]} (23. Rxc7 Qxa2 24. Rc6 Qxc2 25. Rxc2 Nd5 $16) 23... Qd7 {[%emt 0:00:06]} 24. Rc2 {[%emt 0:00:15]} Rf5 {[%emt 0:00:17]} 25. Bf4 {[%emt 0:00:53]} Rxc5 {[%emt 0:00:03]} 26. dxc5 {[%emt 0:00:03]} Qd1+ {[%emt 0:00:02]} 27. Kg2 {[%emt 0:00:02]} Qd5 {[%emt 0:00:00]} 28. f3 {[%emt 0:00:38]} Nd7 {[%emt 0:00:18]} 29. c6 {[%emt 0:00:25]} Nf6 {[%emt 0:01:28]} 30. Qxc4 {[%emt 0:02:24]} Qxc4 {[%emt 0:00:03]} 31. Rxc4 {[%emt 0:00:01]} Rxa2+ $11 {[%emt 0:00:00][%mdl 4096] Endgame. KRB-KRN} 32. Kh3 {[%emt 0:00:01]} Nd5 {[%emt 0:00:01]} 33. Be5 {[%emt 0:00:02]} Re2 {[%emt 0:00:02]} 34. f4 {[%emt 0:00:16]} Kf7 {[%emt 0:00:05]} 35. g4 $2 {[%emt 0:00:17][%mdl 8192] White does not recover from this.} (35. Ra4 $11) 35... Re3+ $1 $19 {[%emt 0:00:40]} 36. Kh4 {[%emt 0:00:02]} Ne7 {[%emt 0:00:04]} 37. Rc3 {[%emt 0:01:07]} (37. Bxc7 $2 Ng6+ 38. Kg5 h6+ 39. Kh5 Rh3#) 37... Ng6+ {[%emt 0:00:08]} 38. Kh5 {[%emt 0:00:01] [#]} Nxf4+ $1 {[%emt 0:00:23][%mdl 512]} 39. Kg5 {[%emt 0:00:00]} Nh3+ {[%emt 0:00:20]} ({Less strong is} 39... Rxe5+ 40. Kxf4 Kf6 41. Rd3 $19) (39... Nd3 {( -> ...h6+)} 40. Kh4 (40. Bxc7 $2 {is a self mate.} h6+ 41. Kh4 g5+ 42. Kh5 Rh3#) 40... g5+ (40... Rxe5 $2 41. Rxd3 Rd5 42. Rc3 $19) 41. Kxg5 Rxe5+ 42. Kh4 Nf4) 40. Kh4 {[%emt 0:00:03]} Rxe5 {[%emt 0:00:06]} 41. Kxh3 {[%emt 0:00:01] KR-KR} Ke7 {[%emt 0:00:04]} 42. Kg3 {[%emt 0:00:10]} g5 {[%emt 0:00:09]} 43. h4 {[%emt 0:00:05]} h6 {[%emt 0:00:18]} 44. h5 {[%emt 0:00:09]} Rd5 $1 {[%emt 0:00:08]} 45. Kf3 {[%emt 0:00:19] [#]} Rd4 $1 {[%emt 0:00:12] ...Kd6 is the strong threat.} 46. Kg3 $2 {[%emt 0:00:12] [#]} (46. Rb3) 46... e5 $1 {[%emt 0:00:10]} ({Not} 46... Kd6 47. Rf3 Ke7 (47... Kxc6 48. Rf6 $11) 48. Rc3 $19) 47. Rc5 {[%emt 0:00:10]} Ke6 {[%emt 0:00:11]} 48. Ra5 {[%emt 0:00:02]} Rc4 {[%emt 0:00:26]} 49. Ra6 {[%emt 0:00:06]} (49. Ra7 $142 Rxc6 50. Ra5) 49... Kd5 {[%emt 0:00:05] Black is clearly winning.} 50. Kf3 {[%emt 0:00:04]} Rc3+ {[%emt 0:00:04]} 51. Ke2 {[%emt 0:00:01]} Rxc6 {[%emt 0:00:03] Weighted Error Value: White=0.36/Black=0.10 (very precise) .  Loses game:     	White=1     	---        Mistake:       	White=2     	Black=1      Inaccurate:     	White=1     	---        OK:         	White=15    	Black=18     Best:        	White=4     	Black=5      Strong:       	---       	Black=4      Brilliant:      	---       	Black=1} 0-1